Cogmind - Beta 13 @@@ ROGUE MODE // 2024.04.02 @ 20:14:08 Player: CogEmotions! Result: Destroyed by S-10 Pest with Light Assault Rifle Performance ------------- Evolutions (1) 500 Regions Visited (2) 400 Robots Destroyed (30) 150 Value Destroyed (594) 594 Prototype IDs (0) 0 Alien Tech Used (0) 0 Bonus (0) 0 TOTAL SCORE: 1644 Bonus ------- None Cogmind --------- Core Integrity 0/400 Matter 143/300 Energy 100/100 System Corruption 3% Temperature Cool (0) Movement Core (50) Location -9/Materials Parts ------- > --- POWER (1) -------- (None) > --- PROPULSION (2) --- (None) > --- UTILITY (4) ------ Signal Interpreter Advanced Targeting Computer > --- WEAPON (2) ------- (None) > --- INVENTORY (5) ---- Ion Engine Core Shielding Peak State ------------ > --- POWER ------------ Light Nuclear Core > --- PROPULSION ------- Armored Wheel Flight Unit > --- UTILITY ---------- Small Storage Unit Signal Interpreter Advanced Targeting Computer Hardened Medium Armor Plating > --- WEAPON ----------- Improved Grenade Launcher Improved Grenade Launcher > --- INVENTORY -------- Ion Engine Armored Wheel Flight Unit Flight Unit Core Shielding Heavy Assault Rifle Light Cannon Datajack [Rating: 21] Favorites ----------- Power Light Nuclear Core Engine Light Ion Engine Power Core Light Nuclear Core Propulsion Flight Unit Leg Aluminum Leg Wheel Armored Wheel Flight Unit Flight Unit Utility Small Storage Unit Device Improved Heat Sink Storage Small Storage Unit Processor Signal Interpreter Protection Core Shielding Weapon Light Cannon Ballistic Gun Assault Rifle Ballistic Cannon Light Cannon Launcher Improved Grenade Launcher Special Weapon Plasma Cutter Special Melee Weapon Datajack Build | -11 -10 -9 ------- Run | Yrd Mat Mat Slots Evolved 2 | . . 2 Power . | . . . Propulsion . | . . . Utility 2 | . . 2 Weapon . | . . . Parts Attached 30 | 6 11 13 Power 2 | 1 1 . Engine 1 | 1 . . Core 1 | . 1 . Reactor . | . . . Propulsion 6 | 2 2 2 Treads . | . . . Leg 2 | 2 . . Wheel 2 | . . 2 Hover . | . . . Flight 2 | . 2 . Utility 7 | 1 2 4 Device 2 | . 1 1 Storage 1 | 1 . . Processor 2 | . . 2 Hackware . | . . . Protection 2 | . 1 1 Artifact . | . . . Weapon 15 | 2 6 7 Energy Gun . | . . . Energy Cannon . | . . . Ballistic Gun 5 | 2 1 2 Ballistic Cannon 3 | . 2 1 Launcher 3 | . . 3 Special Weapon 3 | . 3 . Impact Weapon . | . . . Slashing Weapon . | . . . Piercing Weapon . | . . . Special Melee Weapon 1 | . . 1 Unidentified Prototypes . | . . . Parts Lost 13 | . 3 10 Power 2 | . 1 1 Propulsion 3 | . 1 2 Utility 2 | . . 2 Weapon 6 | . 1 5 Highest Loss Streak 7 | . 2 7 To Critical Strikes . | . . . Average Slot Usage (%) 96 | . 96 96 Engine 2 | . 3 . Core 10 | . 10 9 Leg 10 | . 15 . Wheel 2 | . . 9 Flight 11 | . 11 12 Device 6 | . 7 4 Storage 13 | . 14 10 Processor 5 | . . 17 Protection 6 | . 4 10 Ballistic Gun 10 | . 12 4 Ballistic Cannon 10 | . 13 5 Launcher 3 | . . 11 Special Weapon 1 | . 2 . Naked Turns . | . . . Heaviest Build 31 | 12 17 31 Greatest Support 24 | 20 20 24 Greatest Overweight (x) 3 | . 2 3 Average Overweight (x) . | . . 1 Largest Inventory Capacity 8 | 8 8 8 Average Capacity 7 | 6 8 7 Most Carried 8 | 5 8 8 Average Carried 4 | . 4 5 Final Capacity 8 | 8 8 5 Final Carried 7 | . 7 2 Class Distribution -------------------- 77% | Mutant 22% | Scavenger-Mutant Dominant Class ---------------- Mutant | -10/Materials Scavenger-Mutant | -9/Materials Resources | -11 -10 -9 ----------- Run | Yrd Mat Mat Matter Collected 717 | 220 357 140 Remotely . | . . . Salvage Created 757 | . 471 286 Parts 53 | . 27 26 Haulers Intercepted . | . . . Recyclers Shooed 1 | . . 1 Parts Field Recycled . | . . . Retrieved Matter . | . . . Parts Self-Destructed . | . . . Prevented . | . . . Kills | -11 -10 -9 ------- Run | Yrd Mat Mat Combat Hostiles Destroyed 18 | . 8 10 Melee 1 | . . 1 Guns 6 | . 5 1 Cannons 5 | . 3 2 AOE 6 | . . 6 Classes Destroyed 10 | . 6 4 Worker 2 | . 1 1 Builder 1 | . . 1 Tunneler 2 | . . 2 Recycler 4 | . 2 2 Operator 1 | . 1 . Watcher 2 | . 1 1 Swarmer 8 | . 3 5 Grunt 7 | . 5 2 Duelist 1 | . . 1 Sentry 2 | . . 2 Best Kill Streak 9 | . 4 9 Combat Bots Only 6 | . 3 6 Max Kills in Single Turn 7 | . 1 7 Gunslinging . | . . . Exploded 4 | . . 4 Melee 1 | . . 1 Uniques/NPCs Destroyed . | . . . Combat | -11 -10 -9 -------- Run | Yrd Mat Mat Hostile Shots Fired 271 | . 81 190 Missed 94 | . 27 67 Damage Taken 2022 | . 590 1432 Core 528 | . 120 408 Absorbed by Shields . | . . . Core Remaining (%) 76 | 100 52 . Volleys Fired 66 | . 50 16 Largest 2 | . 2 2 Hottest 72 | . 70 72 Shots Fired 115 | . 84 31 Gun 55 | . 46 9 Cannon 29 | . 20 9 Launcher 13 | . . 13 Special 18 | . 18 . Kinetic 84 | . 66 18 Thermal 18 | . 18 . Explosive 13 | . . 13 Electromagnetic . | . . . Robot Hit Streak 6 | . 6 4 Robot Miss Streak 4 | . 4 4 Penetration Max . | . . . Secondary Targets . | . . . Shots Hit Robots 58 | . 40 18 Core Hits 45 | . 19 26 Critical Kills . | . . . Critical Parts Destroyed . | . . . Critical Strikes . | . . . Melee Attacks 4 | . . 4 Impact . | . . . Slashing . | . . . Piercing . | . . . Sneak Attacks . | . . . Combat Hostiles . | . . . Follow-up Attacks . | . . . Damage Inflicted 1822 | . 573 1249 Guns 469 | . 389 80 Cannons 226 | . 143 83 Explosions 1063 | . . 1063 Melee . | . . . Ramming 32 | . 9 23 Kinetic 695 | . 532 163 Thermal 32 | . 32 . Explosive 1063 | . . 1063 Electromagnetic . | . . . Impact . | . . . Slashing . | . . . Piercing . | . . . Highest Corruption 3 | . 2 3 Average Corruption 2 | . 2 3 Corruption Purged . | . . . Corruption Blocked . | . . . Effects 5 | . 5 . Message Errors 1 | . 1 . Matter Fused 2 | . 2 . Data Loss (minor) 2 | . 2 . Overload Shots . | . . . Overflow Damage . | . . . Projectiles . | . . . Explosions . | . . . Melee . | . . . Knockbacks . | . . . Impact . | . . . Kinetic . | . . . Secondary . | . . . Self-Inflicted Damage 86 | . 2 84 Shots 2 | . . 2 Rammed 9 | . 2 7 Targets Rammed 11 | . 4 7 Kicked 2 | . 2 . Crushed . | . . . Highest Temperature 80 | . 63 80 Average Temperature 27 | . 24 29 Received Heat Transfer 594 | . 246 348 Siege Activations . | . . . Robots Corrupted . | . . . Combat Hostiles . | . . . Parts Fried . | . . . Impact Corruptions . | . . . Robots Melted . | . . . Combat Hostiles . | . . . Parts Melted . | . . . Heat Transferred 111 | . 111 . Parts Sabotaged . | . . . Parts Stolen . | . . . Parts Stripped . | . . . Power Chain Reactions . | . . . Alert | -11 -10 -9 ------- Run | Yrd Mat Mat Peak Influence 331 | . 120 331 Initial 21 | . . 21 Average 49 | . 28 98 Maximum Alert Level 1 | . . 1 Low Security (%) 94 | 100 100 81 Level 1 5 | . . 18 Level 2 . | . . . Level 3 . | . . . Level 4 . | . . . Level 5 . | . . . High Security . | . . . Max Security . | . . . Squads Dispatched 3 | . 2 1 Investigation . | . . . Extermination . | . . . Reinforcement 3 | . 2 1 Assault . | . . . Garrison . | . . . Intercept . | . . . Searches Triggered . | . . . Construction Impeded 1 | . . 1 Haulers Reinforced . | . . . Active Scanning Responses . | . . . Cargo Convoy Interrupts . | . . . Stealth | -11 -10 -9 --------- Run | Yrd Mat Mat Distress Signals . | . . . Communications Jammed . | . . . Distress Signals . | . . . Times Spotted 37 | . 20 17 Peak Tracking Total 8 | . 4 8 Tactical Retreats . | . . . Traps | -11 -10 -9 ------- Run | Yrd Mat Mat Traps Triggered 1 | . 1 . Indirectly . | . . . Trap Hack Attempts . | . . . Triggered . | . . . Disarmed . | . . . Reprogrammed . | . . . Reused . | . . . Traps Extracted . | . . . Installed . | . . . Triggered . | . . . Machines | -11 -10 -9 ---------- Run | Yrd Mat Mat Machines Disabled 2 | . . 2 Max in Single Turn 1 | . . 1 Machines Repaired . | . . . Machines Dismantled 1 | . 1 . Machines Sabotaged . | . . . Overloaded Fab Kills . | . . . Hacking | -11 -10 -9 --------- Run | Yrd Mat Mat Machines Accessed 1 | . 1 . Terminals 1 | . 1 . Fabricators . | . . . Repair Stations . | . . . Recycling Units . | . . . Scanalyzers . | . . . Garrison Access . | . . . Total Hacks 3 | . 3 . Successful 2 | . 2 . Failed 1 | . 1 . Catastrophic . | . . . Database Lockouts . | . . . Manual . | . . . Terminals 3 | . 3 . Fabricators . | . . . Repair Stations . | . . . Recycling Units . | . . . Scanalyzers . | . . . Garrison Access . | . . . Terminal Hacks 2 | . 2 . Record 1 | . 1 . Alert Level 1 | . 1 . Fabricator Hacks . | . . . Repair Station Hacks . | . . . Recycling Unit Hacks . | . . . Scanalyzer . | . . . Garrison Access Hacks . | . . . Unauthorized Hacks . | . . . Terminals . | . . . Fabricators . | . . . Repair Stations . | . . . Recycling Units . | . . . Scanalyzers . | . . . Garrison Access . | . . . Data Cores Recovered . | . . . Used . | . . . Hacking Detections 1 | . 1 . Full Trace Events . | . . . Feedback Events . | . . . Feedback Blocked . | . . . Robot Schematics Acquired . | . . . Robots Built . | . . . Authchips . | . . . Time . | . . . Total Robot Build Rating . | . . . Part Schematics Acquired . | . . . Parts Built . | . . . Authchips . | . . . Time . | . . . Total Part Build Rating . | . . . Parts Repaired . | . . . Time . | . . . Parts Recycled . | . . . Recycled Matter . | . . . Retrieved Matter . | . . . Retrieved Components . | . . . Parts Scanalyzed . | . . . Part Schematics Acquired . | . . . Parts Damaged . | . . . Bothacking | -11 -10 -9 ------------ Run | Yrd Mat Mat Used RIF Installer . | . . . Robots Hacked 1 | . . 1 Non-combat . | . . . Combat 1 | . . 1 Robot Hacks Applied 1 | . . 1 parse_system 1 | . . 1 Relay Couplers Released . | . . . Fabnet Peak Effective % . | . . . Robots Rewired . | . . . Allies Hacked . | . . . Hacks Repelled . | . . . Allies | -11 -10 -9 -------- Run | Yrd Mat Mat Total Allies . | . . . Largest Group . | . . . Highest-Rated Group . | . . . Highest-Rated Ally . | . . . Total Orders . | . . . Ally Attacks . | . . . Total Damage . | . . . Kills . | . . . Allies Corrupted . | . . . Allies Melted . | . . . Intel | -11 -10 -9 ------- Run | Yrd Mat Mat Robot Analysis Total . | . . . Derelict Logs Recovered . | . . . Drone Launches . | . . . Drone Recoveries . | . . . Exploration | -11 -10 -9 ------------- Run | Yrd Mat Mat Turns Passed 2085 | 49 1395 641 Spaces Moved 1179 | 41 765 373 Core 21 | 16 . 5 Treads . | . . . Legs 505 | 25 480 . Wheels 214 | . . 214 Hover . | . . . Flight 439 | . 285 154 Fastest Speed 50 | 50 120 50 Average Speed 147 | 92 151 145 Slowest Speed 277 | 120 197 277 Overloaded Moves . | . . . Propulsion Burnouts . | . . . Robots Hopped . | . . . Cave-ins Triggered . | . . . Exploration Rate (%) 37 | 4 75 34 Regions Visited 2 Branch Regions . Pre-discovered Areas . | . . . Known Exits Taken . | . . . Unknown Exits Taken 2 | 1 1 . Scrap Searched . | . . . Spaces Dug . | . . . Terrain Destroyed 102 | . . 102 Melee . | . . . Projectile . | . . . AOE 102 | . . 102 Terrain Rammed . | . . . Walls Destroyed . | . . . Machines Disabled . | . . . Actions | -11 -10 -9 --------- Run | Yrd Mat Mat Total 1385 | 52 892 441 Wait 55 | . 42 13 Move 1177 | 40 764 373 Hop . | . . . Pick Up 26 | 6 13 7 Fast Attach . | . . . Attach 20 | 6 7 7 Detach 3 | . 3 . Swap 10 | . 4 6 Drop 10 | . 2 8 Fire 66 | . 50 16 Melee 4 | . . 4 Ram 9 | . 2 7 Kick 2 | . 2 . Crush . | . . . Escape Stasis . | . . . Rewire . | . . . Trap . | . . . Miscellaneous 3 | . 3 . Route ------- -11/Scrapyard -10/Materials (discovered 2 exits: *Mat / [*Min]) -9/Materials (discovered 2 exits: [*Mat] / [*Min]) History --------- Turn | Location | Event 10 | -11/Scrapyard | Discovered new exit (range 16) 50 | -11/Scrapyard | Entered Materials 313 | -10/Materials | Build established: Mutant 513 | -10/Materials | Discovered new exit (range 14) 831 | -10/Materials | Discovered new exit (range 16) 1445 | -10/Materials | Entered another Materials area 1445 | -9/Materials | Evolved 2 slots: Utility x2 1741 | -9/Materials | Build established: Scavenger-Mutant 1800 | -9/Materials | Discovered new exit (range 16) 2004 | -9/Materials | Lost 3 parts (1p2w) 2016 | -9/Materials | Discovered new exit (range 9) 2070 | -9/Materials | Core integrity fell below 50% 2081 | -9/Materials | Build established: Mutant 2081 | -9/Materials | Core integrity fell below 20% 2086 | -9/Materials | Destroyed by S-10 Pest with Light Assault Rifle Last Messages --------------- >>parse_system Reading system data... U-05 Engineer lays Concrete. Jacked S-10 Pest... U-05 Engineer lays Concrete. U-05 Engineer builds a Wall. Arm. Wheel destroyed. Datajack destroyed. Arm. Wheel destroyed. Acquired 16 matter. Slammed into G-34 Mercenary. Sml. Storage Unit destroyed. System corrupted by crushing effect (+3). Slammed into G-34 Mercenary. Acquired 2 matter. Slammed into G-34 Mercenary. U-05 Engineer builds a Wall. Slammed into G-34 Mercenary. G-34 Mercenary destroyed. Acquired 49 matter. Map ----- +----------------------------------------------------+ | ?????????????????????????????????????????????????? | | ?????????????????????????????????????????????????? | | ?????????????????????????????????????????????????? | | ?????????????????????????????????????????????????? | | ?????????????????????????????????????????????????? | | ?????????????????????????????????????????????????? | | ?????????????????????????????????????????????????? | | ?????????????????????????????????????????????????? | | ?????????????????????????????????????????????????? | | ?????????????????????????????????????????????????? | | ?????????????????????????????????????????????????? | | ?????????????????????????????????????????????????? | | ????????????????????????????#????????????????????? | | ???????????????????????????? ????????????????????? | | ???????????????????????????# #???????????????????? | | ?????????????????????????### ###?????????????????? | | ???????????????????????+## #?????????????????? | | ??????????????????????? #??#######????????? | | ???????????????????????? #??# #????????? | | ????????????????????????? #??# #????????? | | ?????????????????????????? ???#""" #????????? | | ??????????????????????????# #???#""" #????????? | | ??????????????############# #???#""" ########## | | ??????????????# [ [ =# #???# # | | ??????????????# s = *!]# r##### # "" """ | | ??????????????# """ s @Y ## #### #+# % S """ | | ??????????????# """ [[[ # # " """ | | ??????????????# """ [[[ # [ %+!% | | ??????????????# [[[ u[ =#%= | | ??????????????# # =###########[ | | ??????????????######### ##* %# #???##### | | ?????????????????????##### ! ################+## | | ?????????????? ! | | ?????????????? | | ?????????????? | | ???????????????# ####### ##### ##+##### ## | | ???????????????? ????????###+###???# ## ## #? | | ??????????????????????????? ?????? # ## ## | | ???????????????????????????]????#"" # ## # | | ??????????????????????????]?????#!! # ## # | | ?????????????????????????? ?????#"" < # ## | | ????????????????????????? ??????#!! # ## | | ????????????????????????????????#"" # ## | | ?????????????????????????????????" # + | | ?????????????????????????????????### ## ##+# | | ???????????????????????????????????# ####### | | ???????????????????????????????????+ +??? | | ???????????????????????????????????? ?? """ # | | ????????????????????????????????????????? """ # "" | | ????????????????????????????????????????? """ # "" | +----------------------------------------------------+ Best States ------------- Heat Dissipation 42 Energy Generation 14 Energy Capacity 160 Matter Stores 300 Matter Capacity 300 Sight Range 16 Terrain Scan Density 10 Armor Coverage 225 Core Shielding 20 Evasion (%) 55 Targeting Accuracy 8 Item Schematics ----------------- None Robot Schematics ------------------ None Fabricated ------------ Nothing Alien Tech Used ----------------- None Achievements -------------- Oops Challenges ------------ None Game ------ Seed ArcSegregatorRedirector Manual? 0 Play Time 00:21:28 Cumulative 4.6 hours Start 2024.04.02 @ 19:42:31 End 2024.04.02 @ 20:14:08 Sessions 1 Manual Loads 0 Difficulty Rogue Special Mode None Game No. 10 Rogue 10 Adventurer 0 Explorer 0 Win Type - Total 0 Types 0/0/0/0/0/0/0/0/0 Lore% 3 Gallery% 10 Achievement% 9 Wizard Run 0 Options --------- Layout 1 ASCII 0 Keyboard 0 Movement Mouse Keybinds 0 Fullscreen 1 Font 24/Smallcaps Map View 50x35 Zoom Use 0% Tactical HUD 0 Map Filters NONE Filters NONE Steam 1 RUN: 5fb038cd-2891-4e0b-9694-9289b77c28b9